fUSD/lending_fUSD_20250426
["ID","MTS","AMOUNT","RATE_DAILY","PERIOD"]
[359025531,1745658645290,-521.48,0.00019969,2]
[359025533,1745658645300,-500.0,0.00019969,2]
[359025535,1745658645310,-500.0,0.00019969,2]
[359025537,1745658645320,-594.81,0.00019969,2]
[359025538,1745658645331,-500.0,0.00019969,2]
[359025540,1745658645341,-500.0,0.00019969,2]
[359025543,1745658645352,-510.45808723,0.00019969,2]
[359025545,1745658645365,-509.87107588,0.00019969,2]
[359025547,1745658645375,-500.0,0.00019969,2]
[359025549,1745658645384,-500.0,0.00019969,2]
[359025551,1745658645395,-500.0,0.00019969,2]
[359025553,1745658645405,-500.0,0.00019969,2]
[359025555,1745658645415,-500.0,0.00019969,2]
[359025557,1745658645425,-500.0,0.00019969,2]
[359025559,1745658645435,-500.0,0.00019969,2]
[359025561,1745658645445,-632.02,0.00019969,2]
[359025563,1745658645455,-500.0,0.00019969,2]
[359025565,1745658645465,-500.0,0.00019969,2]
[359025567,1745658645475,-500.0,0.00019969,2]
[359025569,1745658645484,-500.0,0.00019969,2]
[359025571,1745658645494,-500.0,0.00019969,2]
[359025573,1745658645504,-803.95,0.00019969,2]
[359025575,1745658645514,-500.0,0.00019969,2]
[359025577,1745658645525,-645.15,0.00019969,2]
[359025579,1745658645534,-500.0,0.00019969,2]
[359025581,1745658645544,-500.0,0.00019969,2]
[359025583,1745658645554,-500.0,0.00019969,2]
[359025585,1745658645564,-922.31,0.00019969,2]
[359025587,1745658645574,-2223.92,0.00019969,2]
[359025590,1745658645596,-500.0,0.00019969,2]
[359025592,1745658645608,-500.0,0.00019969,2]
[359025594,1745658645620,-500.0,0.00019969,2]
[359025597,1745658645631,-500.0,0.00019969,2]
[359025599,1745658645642,-606.21,0.00019969,2]
[359025601,1745658645657,-969.56,0.00019969,2]
[359025603,1745658645667,-642.11,0.00019969,2]
[359025605,1745658645677,-291.01749777,0.00019969,2]
[359025608,1745658645688,-500.0,0.00019969,2]
[359025611,1745658645699,-864.96,0.00019969,2]
[359025614,1745658645710,-500.0,0.00019969,2]
[359025616,1745658645724,-500.0,0.00019969,2]
[359025619,1745658645740,-819.99,0.00019969,2]
[359025621,1745658645751,-500.0,0.00019969,2]
[359025623,1745658645761,-500.0,0.00019969,2]
[359025625,1745658645771,-1024.13,0.00019969,2]
[359025627,1745658645781,-500.0,0.00019969,2]
[359025629,1745658645792,-500.0,0.00019969,2]
[359025631,1745658645802,-500.0,0.00019969,2]
[359025633,1745658645812,-612.05,0.00019969,2]
[359025635,1745658645822,-500.0,0.00019969,2]
[359025637,1745658645833,-524.44,0.00019969,2]
[359025640,1745658645843,-500.0,0.00019969,2]
[359025642,1745658645854,-817.11,0.00019969,2]
[359025644,1745658645865,-500.0,0.00019969,2]
[359025646,1745658645876,-500.0,0.00019969,2]
[359025648,1745658645886,-500.0,0.00019969,2]
[359025650,1745658645898,-500.0,0.00019969,2]
[359025652,1745658645908,-660.9,0.00019969,2]
[359025654,1745658645918,-500.0,0.00019969,2]
[359025656,1745658645929,-500.0,0.00019969,2]
[359025658,1745658645939,-500.0,0.00019969,2]
[359025660,1745658645949,-546.43,0.00019969,2]
[359025662,1745658645960,-500.0,0.00019969,2]
[359025664,1745658645970,-500.0,0.00019969,2]
[359025667,1745658645980,-519.11,0.00019969,2]
[359025669,1745658645991,-500.0,0.00019969,2]
[359025671,1745658646001,-500.0,0.00019969,2]
[359025673,1745658646011,-500.0,0.00019969,2]
[359025675,1745658646021,-300.0,0.00019969,2]
[359025677,1745658646031,-1041.41,0.00019969,2]
[359025680,1745658646048,-768.31,0.00019969,2]
[359025682,1745658646059,-500.0,0.00019969,2]
[359025684,1745658646069,-760.62,0.00019969,2]
[359025686,1745658646080,-500.0,0.00019969,2]
[359025688,1745658646091,-500.0,0.00019969,2]
[359025690,1745658646102,-500.0,0.00019969,2]
[359025692,1745658646113,-522.49,0.00019969,2]
[359025694,1745658646123,-500.0,0.00019969,2]
[359025696,1745658646133,-500.0,0.00019969,2]
[359025698,1745658646144,-500.0,0.00019969,2]
[359025700,1745658646154,-500.0,0.00019969,2]
[359025702,1745658646164,-500.0,0.00019969,2]
[359025704,1745658646175,-500.0,0.00019969,2]
[359025706,1745658646186,-500.0,0.00019969,2]
[359025708,1745658646196,-691.86,0.00019969,2]
[359025710,1745658646207,-500.0,0.00019969,2]
[359025712,1745658646217,-500.0,0.00019969,2]
[359025714,1745658646228,-500.0,0.00019969,2]
[359025716,1745658646238,-500.0,0.00019969,2]
[359025719,1745658646248,-500.0,0.00019969,2]
[359025721,1745658646259,-500.0,0.00019969,2]
[359025723,1745658646270,-3214.0,0.00019969,2]
[359025725,1745658646281,-500.0,0.00019969,2]
[359025727,1745658646291,-500.0,0.00019969,2]
[359025729,1745658646302,-1061.37,0.00019969,2]
[359025731,1745658646313,-500.0,0.00019969,2]
[359025734,1745658646323,-500.0,0.00019969,2]
[359025736,1745658646334,-500.0,0.00019969,2]
[359025738,1745658646344,-500.0,0.00019969,2]
[359025740,1745658646355,-500.0,0.00019969,2]
[359025742,1745658646366,-500.0,0.00019969,2]
[359025744,1745658646377,-500.0,0.00019969,2]
[359025747,1745658646387,-835.82,0.00019969,2]
[359025749,1745658646398,-1195.12,0.00019969,2]
[359025751,1745658646408,-913.75,0.00019969,2]
[359025753,1745658646418,-1906.27,0.00019969,2]
[359025756,1745658646429,-500.0,0.00019969,2]
[359025758,1745658646440,-500.0,0.00019969,2]
[359025760,1745658646450,-506.45,0.00019969,2]
[359025763,1745658646467,-500.0,0.00019969,2]
[359025765,1745658646478,-500.0,0.00019969,2]
[359025767,1745658646489,-500.0,0.00019969,2]
[359025769,1745658646499,-500.0,0.00019969,2]
[359025771,1745658646511,-500.0,0.00019969,2]
[359025773,1745658646521,-500.0,0.00019969,2]
[359025776,1745658646532,-500.0,0.00019969,2]
[359025778,1745658646543,-500.0,0.00019969,2]
[359025780,1745658646555,-500.0,0.00019969,2]
[359025782,1745658646567,-500.0,0.00019969,2]
[359025784,1745658646578,-536.83,0.00019969,2]
[359025787,1745658646589,-500.0,0.00019969,2]
[359025789,1745658646600,-500.0,0.00019969,2]
[359025791,1745658646612,-764.23,0.00019969,2]
[359025793,1745658646622,-500.0,0.00019969,2]
[359025795,1745658646632,-940.5,0.00019969,2]
[359025797,1745658646643,-500.0,0.00019969,2]
[359025799,1745658646654,-624.49,0.00019969,2]
[359025802,1745658646667,-502.59,0.00019969,2]
[359025804,1745658646678,-549.47,0.00019969,2]
[359025806,1745658646688,-514.00705452,0.00019969,2]
[359025808,1745658646700,-500.0,0.00019969,2]
[359025810,1745658646711,-500.0,0.00019969,2]
[359025813,1745658646728,-500.0,0.00019969,2]
[359025815,1745658646740,-805.75,0.00019969,2]
[359025817,1745658646750,-500.0,0.00019969,2]
[359025819,1745658646760,-500.0,0.00019969,2]
[359025821,1745658646770,-500.0,0.00019969,2]
[359025823,1745658646781,-643.57,0.00019969,2]
[359025825,1745658646792,-500.0,0.00019969,2]
[359025828,1745658646803,-500.0,0.00019969,2]
[359025830,1745658646814,-861.55,0.00019969,2]
[359025832,1745658646825,-190.50510688,0.00019969,2]
[359025834,1745658646835,-500.0,0.00019969,2]
[359025836,1745658646845,-500.0,0.00019969,2]
[359025838,1745658646855,-500.0,0.00019969,2]
[359025840,1745658646867,-500.0,0.00019969,2]
[359025842,1745658646877,-500.0,0.00019969,2]
[359025844,1745658646888,-500.0,0.00019969,2]
[359025846,1745658646898,-799.58,0.00019969,2]
[359025849,1745658646914,-500.0,0.00019969,2]
[359025851,1745658646925,-500.0,0.00019969,2]
[359025853,1745658646935,-250.63054389,0.00019969,2]
[359025855,1745658646945,-500.0,0.00019969,2]
[359025857,1745658646956,-500.0,0.00019969,2]
[359025859,1745658646966,-500.0,0.00019969,2]
[359025861,1745658646976,-500.0,0.00019969,2]
[359025863,1745658646987,-538.55,0.00019969,2]
[359025880,1745658647139,-500.0,0.00019969,2]
[359025883,1745658647150,-500.0,0.00019969,2]
[359025885,1745658647160,-901.77,0.00019969,2]
[359025887,1745658647169,-500.0,0.00019969,2]
[359025889,1745658647179,-500.0,0.00019969,2]
[359025891,1745658647188,-892.5,0.00019969,2]
[359025892,1745658647197,-500.0,0.00019969,2]
[359025894,1745658647206,-500.0,0.00019969,2]
[359025896,1745658647217,-500.0,0.00019969,2]
[359025898,1745658647226,-500.0,0.00019969,2]
[359025900,1745658647236,-500.0,0.00019969,2]
[359025902,1745658647246,-500.0,0.00019969,2]
[359025904,1745658647255,-500.0,0.00019969,2]
[359025906,1745658647265,-736.13,0.00019969,2]
[359025909,1745658647275,-500.0,0.00019969,2]
[359025911,1745658647284,-789.92,0.00019969,2]
[359025913,1745658647293,-500.0,0.00019969,2]
[359025914,1745658647304,-500.0,0.00019969,2]
[359025917,1745658647313,-500.0,0.00019969,2]
[359025919,1745658647323,-876.35,0.00019969,2]
[359025921,1745658647333,-500.0,0.00019969,2]
[359025923,1745658647342,-500.0,0.00019969,2]
[359025924,1745658647351,-500.0,0.00019969,2]
[359025926,1745658647362,-333.08239048,0.00019969,2]
[359025928,1745658647371,-500.0,0.00019969,2]
[359025931,1745658647382,-500.0,0.00019969,2]
[359025933,1745658647392,-500.0,0.00019969,2]
[359025935,1745658647401,-978.29,0.00019969,2]
[359025937,1745658647410,-500.0,0.00019969,2]
[359025939,1745658647420,-500.0,0.00019969,2]
[359025940,1745658647430,-907.86,0.00019969,2]
[359025942,1745658647439,-500.0,0.00019969,2]
[359025944,1745658647450,-500.0,0.00019969,2]
[359025946,1745658647459,-235.18471082,0.00019969,2]
[359025948,1745658647469,-500.0,0.00019969,2]
[359025951,1745658647480,-500.0,0.00019969,2]
[359025953,1745658647490,-945.02,0.00019969,2]
[359025955,1745658647499,-500.0,0.00019969,2]
[359025957,1745658647509,-500.0,0.00019969,2]
[359025958,1745658647519,-1210.86,0.00019969,2]
[359025960,1745658647529,-151.0,0.00019969,2]
[359025963,1745658647539,-153.946413,0.00019969,2]
[359025965,1745658647550,-508.41,0.00019969,2]
[359025967,1745658647559,-500.0,0.00019969,2]
[359025970,1745658647580,-500.0,0.00019969,2]
[359025972,1745658647592,-166.66,0.0001997,2]
[359025974,1745658647601,-500.0,0.0001997,2]
[359025976,1745658647613,-540.51,0.0001997,2]
[359025978,1745658647623,-524.94,0.0001997,2]
[359025980,1745658647633,-847.22,0.0001997,2]
[359025982,1745658647643,-500.0,0.0001997,2]
[359025984,1745658647652,-692.33,0.0001997,2]
[359025986,1745658647667,-1056.54,0.0001997,2]
[359025988,1745658647678,-500.0,0.0001997,2]
[359025990,1745658647689,-535.56101566,0.0001997,2]
[359025992,1745658647699,-500.0,0.0001997,2]
[359025994,1745658647709,-549.3,0.0001997,2]
[359025997,1745658647727,-826.71,0.0001997,2]
[359025999,1745658647739,-1495.8,0.0001997,2]
[359026001,1745658647749,-1441.23,0.0001997,2]
[359026003,1745658647758,-500.0,0.0001997,2]
[359026005,1745658647768,-593.84,0.0001997,2]
[359026007,1745658647778,-1121.64,0.0001997,2]
[359026009,1745658647789,-500.0,0.0001997,2]
[359026011,1745658647799,-1209.24,0.0001997,2]
[359026013,1745658647808,-713.45,0.0001997,2]
[359026015,1745658647819,-1065.29,0.0001997,2]
[359026017,1745658647829,-884.25,0.0001997,2]
[359026019,1745658647839,-500.0,0.00019973,2]
[359026021,1745658647849,-500.0,0.00019973,2]
[359026023,1745658647860,-500.0,0.00019973,2]
[359026025,1745658647870,-500.0,0.00019973,2]
[359026027,1745658647879,-500.0,0.00019973,2]
[359026029,1745658647889,-500.0,0.00019973,2]
[359026031,1745658647899,-500.0,0.00019973,2]
[359026033,1745658647909,-500.0,0.00019973,2]
[359026035,1745658647918,-500.0,0.00019973,2]
[359026037,1745658647928,-505.51795203,0.00019973,2]
[359026039,1745658647937,-500.0,0.00019973,2]
[359026041,1745658647947,-500.0,0.00019973,2]
[359026043,1745658647957,-500.0,0.00019973,2]
[359026045,1745658647967,-500.0,0.00019973,2]
[359026048,1745658647977,-500.0,0.00019973,2]
[359026049,1745658647986,-500.0,0.00019973,2]
[359026052,1745658647998,-500.0,0.00019973,2]
[359026054,1745658648008,-500.0,0.00019973,2]
[359026056,1745658648018,-500.0,0.00019973,2]
[359026058,1745658648028,-514.7327358,0.00019973,2]
[359026059,1745658648038,-174.53826606,0.00019973,2]
[359026060,1745658648048,-500.0,0.00019973,2]
[359026061,1745658648058,-500.0,0.00019973,2]
[359026062,1745658648069,-500.0,0.00019973,2]
[359026063,1745658648079,-500.0,0.00019973,2]
[359026064,1745658648089,-153.24179358,0.00019973,2]
[359026065,1745658648098,-160.11472219,0.00019973,2]
[359026066,1745658648110,-500.0,0.00019973,2]
[359026067,1745658648120,-150.0,0.00019978,2]
[359026068,1745658648130,-150.0,0.00019978,2]
[359026069,1745658648140,-155.315,0.00019982,2]
[359026070,1745658648149,-150.647,0.00019982,2]
[359026071,1745658648160,-152.676,0.00019982,2]
[359026073,1745658648170,-253.434,0.00019982,2]
[359026075,1745658648180,-245.67,0.00019982,2]
[359026077,1745658648190,-182.428,0.00019982,2]
[359026079,1745658648200,-172.669,0.00019982,2]
[359026081,1745658648210,-258.956,0.00019982,2]
[359026083,1745658648221,-920.0,0.00019982,2]
[359026085,1745658648231,-150.0,0.00019984,2]
[359026087,1745658648241,-1210.04,0.00019985,2]
[359026089,1745658648251,-913.82,0.00019985,2]
[359026091,1745658648260,-500.0,0.00019985,2]
[359026093,1745658648271,-554.82,0.00019985,2]
[359026095,1745658648281,-872.64,0.00019985,2]
[359026097,1745658648291,-1076.24,0.00019985,2]
[359026099,1745658648302,-500.0,0.00019985,2]
[359026101,1745658648312,-500.0,0.00019985,2]
[359026103,1745658648322,-594.57193172,0.00019985,2]
[359026105,1745658648332,-500.0,0.00019985,2]
[359026107,1745658648342,-844.12,0.00019985,2]
[359026109,1745658648351,-555.25,0.00019985,2]
[359026111,1745658648364,-655.43,0.00019985,2]
[359026113,1745658648374,-500.0,0.00019985,2]
[359026115,1745658648384,-2104.4,0.00019985,2]
[359026117,1745658648394,-500.0,0.00019985,2]
[359026119,1745658648405,-995.06,0.00019985,2]
[359026122,1745658648415,-2404.62,0.00019985,2]
[359026124,1745658648424,-778.5,0.00019985,2]
[359026126,1745658648434,-500.0,0.00019985,2]
[359026128,1745658648444,-500.0,0.00019985,2]
[359026130,1745658648454,-1000.28,0.00019985,2]
[359026132,1745658648463,-754.49,0.00019985,2]
[359026134,1745658648474,-749.41,0.00019985,2]
[359026136,1745658648483,-589.39,0.00019985,2]
[359026138,1745658648493,-826.0,0.00019985,2]
[359026140,1745658648503,-824.13,0.00019985,2]
[359026142,1745658648513,-1026.68,0.00019985,2]
[359026144,1745658648523,-500.0,0.00019985,2]
[359026146,1745658648533,-783.62,0.00019985,2]
[359026147,1745658648543,-500.0,0.00019985,2]
[359026150,1745658648553,-500.0,0.00019985,2]
[359026152,1745658648563,-1013.19,0.00019985,2]
[359026154,1745658648573,-500.0,0.00019985,2]
[359026156,1745658648583,-539.49,0.00019985,2]
[359026158,1745658648592,-500.0,0.00019985,2]
[359026160,1745658648602,-500.0,0.00019985,2]
[359026162,1745658648612,-4958.5,0.00019985,2]
[359026164,1745658648622,-114584.2397671,0.00019986,2]
[359026166,1745658648632,-3886.4297005,0.00019986,2]
[359026168,1745658648642,-5558.5271726,0.00019986,2]
[359026170,1745658648652,-3075.4196943,0.00019986,2]
[359026172,1745658648668,-150.0,0.00019988,2]
[359026174,1745658648677,-150.0,0.0001999,2]
[359026176,1745658648687,-150.0,0.00019991,2]
[359026178,1745658648697,-500.0,0.00019991,2]
[359026180,1745658648706,-151.86601957,0.00019991,2]
[359026182,1745658648716,-500.0,0.00019991,2]
[359026184,1745658648726,-166.91613767,0.00019991,2]
[359026186,1745658648735,-150.0,0.00019991,2]
[359026188,1745658648745,-500.0,0.00019991,2]
[359026190,1745658648755,-500.0,0.00019991,2]
[359026192,1745658648764,-150.0,0.00019991,2]
[359026194,1745658648774,-150.0,0.00019991,2]
[359026196,1745658648783,-500.0,0.00019991,2]
[359026198,1745658648792,-500.0,0.00019991,2]
[359026200,1745658648803,-500.0,0.00019991,2]
[359026202,1745658648812,-150.0,0.00019992,2]
[359026204,1745658648823,-150.0,0.00019992,2]
[359026206,1745658648833,-150.0,0.00019993,2]
[359026208,1745658648842,-151.0,0.00019993,2]
[359026210,1745658648852,-151.0,0.00019993,2]
[359026212,1745658648862,-151.0,0.00019993,2]
[359026214,1745658648871,-151.0,0.00019993,2]
[359026216,1745658648881,-151.0,0.00019993,2]
[359026218,1745658648891,-151.0,0.00019993,2]
[359026220,1745658648901,-151.0,0.00019993,2]
[359026222,1745658648910,-151.0,0.00019993,2]
[359026224,1745658648919,-186.130243,0.00019993,2]
[359026226,1745658648929,-186.130243,0.00019993,2]
[359026228,1745658648939,-151.0,0.00019993,2]
[359026230,1745658648948,-151.0,0.00019993,2]
[359026232,1745658648958,-151.0,0.00019993,2]
[359026234,1745658648968,-158.424031,0.00019993,2]
[359026236,1745658648977,-151.0,0.00019993,2]
[359026238,1745658648987,-218.501626,0.00019993,2]
[359026240,1745658648997,-218.501626,0.00019993,2]
[359026242,1745658649006,-1100.987267,0.00019993,2]
[359026244,1745658649016,-1100.987267,0.00019993,2]
[359026246,1745658649026,-151.0,0.00019993,2]
[359026248,1745658649037,-151.0,0.00019993,2]
[359026250,1745658649047,-154.919763,0.00019993,2]
[359026252,1745658649057,-151.0,0.00019993,2]
[359026254,1745658649067,-153.946772,0.00019993,2]
[359026256,1745658649076,-151.0,0.00019993,2]
[359026258,1745658649085,-164405.3957601,0.00019993,2]
[359026260,1745658649095,-500.0,0.00019996,2]
[359026262,1745658649105,-3214.0,0.00019996,2]
[359026264,1745658649115,-500.0,0.00019996,2]
[359026266,1745658649125,-500.0,0.00019996,2]
[359026268,1745658649135,-300.0,0.00019999,2]
[359026270,1745658649144,-300.0,0.00019999,2]
[359026271,1745658649154,-300.0,0.00019999,2]
[359026273,1745658649164,-500.0,0.00019999,2]
[359026276,1745658649175,-467050.93339115,0.00019999,2]
[359026293,1745658649672,-8454.89673333,0.00019999,2]
[359026294,1745658649682,-4898.21297458,0.00019999,2]
[359026295,1745658649694,-228.59486248,0.00019999,2]
[359026296,1745658649704,-151.0,0.00019999,2]
[359026297,1745658649714,-151.0,0.00019999,2]
[359026298,1745658649728,-151.0,0.00019999,2]
[359026299,1745658649738,-155.511929,0.00019999,2]
[359026300,1745658649748,-213.105836,0.00019999,2]
[359026301,1745658649758,-151.0,0.00019999,2]
[359026302,1745658649768,-151.0,0.00019999,2]
[359026303,1745658649778,-151.0,0.00019999,2]
[359026304,1745658649788,-151.0,0.00019999,2]
[359026305,1745658649798,-172.056337,0.00019999,2]
[359026306,1745658649808,-172.056337,0.00019999,2]
[359026307,1745658649818,-151.0,0.00019999,2]
[359026308,1745658649828,-151.0,0.00019999,2]
[359026309,1745658649838,-151.0,0.00019999,2]
[359026310,1745658649848,-152.932542,0.00019999,2]
[359026311,1745658649857,-151.0,0.00019999,2]
[359026312,1745658649868,-151.0,0.00019999,2]
[359026313,1745658649878,-151.0,0.00019999,2]
[359026314,1745658649887,-151.0,0.00019999,2]
[359026315,1745658649897,-151.0,0.00019999,2]
[359026316,1745658649908,-151.0,0.00019999,2]
[359026317,1745658649918,-151.0,0.00019999,2]
[359026318,1745658649927,-151.0,0.00019999,2]
[359026319,1745658649937,-151.0,0.00019999,2]
[359026320,1745658649947,-151.0,0.00019999,2]
[359026321,1745658649957,-161.619234,0.00019999,2]
[359026322,1745658649966,-267.719604,0.00019999,2]
[359026323,1745658649976,-267.719604,0.00019999,2]
[359026324,1745658649986,-267.719604,0.00019999,2]
[359026325,1745658649995,-267.719604,0.00019999,2]
[359026326,1745658650006,-502.554957,0.00019999,2]
[359026327,1745658650015,-502.554957,0.00019999,2]
[359026328,1745658650024,-151.0,0.00019999,2]
[359026329,1745658650035,-151.0,0.00019999,2]
[359026330,1745658650045,-151.0,0.00019999,2]
[359026331,1745658650055,-151.0,0.00019999,2]
[359026332,1745658650065,-151.0,0.00019999,2]
[359026333,1745658650075,-151.0,0.00019999,2]
[359026334,1745658650085,-151.0,0.00019999,2]
[359026335,1745658650095,-151.0,0.00019999,2]
[359026336,1745658650104,-151.321625,0.00019999,2]
[359026337,1745658650115,-151.0,0.00019999,2]
[359026338,1745658650124,-151.0,0.00019999,2]
[359026339,1745658650134,-151.0,0.00019999,2]
[359026340,1745658650144,-155.070762,0.00019999,2]
[359026341,1745658650153,-151.0,0.00019999,2]
[359026342,1745658650163,-430.861252,0.00019999,2]
[359026343,1745658650172,-430.861252,0.00019999,2]
[359026344,1745658650182,-151.0,0.00019999,2]
[359026345,1745658650192,-151.0,0.00019999,2]
[359026346,1745658650202,-151.0,0.00019999,2]
[359026347,1745658650212,-171.877103,0.00019999,2]
[359026348,1745658650222,-171.877103,0.00019999,2]
[359026349,1745658650232,-1147.885923,0.00019999,2]
[359026350,1745658650241,-151.0,0.00019999,2]
[359026351,1745658650251,-171.877103,0.00019999,2]
[359026352,1745658650260,-171.877103,0.00019999,2]
[359026353,1745658650270,-1147.885923,0.00019999,2]
[359026354,1745658650280,-151.0,0.00019999,2]
[359026355,1745658650289,-199.454936,0.00019999,2]
[359026356,1745658650298,-151.0,0.00019999,2]
[359026357,1745658650308,-154.792471,0.00019999,2]
[359026358,1745658650317,-151.0,0.00019999,2]
[359026359,1745658650327,-186.130243,0.00019999,2]
[359026360,1745658650336,-186.130243,0.00019999,2]
[359026361,1745658650346,-154.025265,0.00019999,2]
[359026362,1745658650356,-151.0,0.00019999,2]
[359026363,1745658650368,-151.0,0.00019999,2]
[359026364,1745658650378,-151.0,0.00019999,2]
[359026365,1745658650389,-218.501626,0.00019999,2]
[359026366,1745658650399,-218.501626,0.00019999,2]
[359026367,1745658650410,-1100.987267,0.00019999,2]
[359026368,1745658650420,-1100.987267,0.00019999,2]
[359026369,1745658650431,-151.0,0.00019999,2]
[359026370,1745658650441,-151.0,0.00019999,2]
[359026371,1745658650452,-151.0,0.00019999,2]
[359026372,1745658650463,-151.0,0.00019999,2]
[359026373,1745658650473,-151.0,0.00019999,2]
[359026374,1745658650483,-1015209.39639172,0.0002,2]
[359026375,1745658650494,-27420.5342885,0.0002,2]
[359026376,1745658650504,-301.12735078,0.0002,2]
[359026377,1745658650514,-1482.07178052,0.0002,2]
[359026378,1745658650525,-3052.01544059,0.0002,2]
[359026379,1745658650535,-1804.6,0.0002,2]
[359026380,1745658650545,-5650.4371067,0.0002,2]
[359026381,1745658650555,-1407945.4614328,0.0002,2]
[359026382,1745658650569,-426.425998,0.0002,2]
[359026383,1745658650582,-2429.99999984,0.0002,2]
[359026384,1745658650604,-11568.6154122,0.0002,2]
[359026385,1745658650617,-5447.46272893,0.0002,2]
[359026386,1745658650629,-3600.0,0.0002,2]
[359026387,1745658651186,-500.0,0.00019798,2]
[359026388,1745658651197,-500.0,0.00019799,2]
[359026389,1745658651207,-500.0,0.00019799,2]
[359026390,1745658651352,-46.02515824,0.00019799,2]
[359026391,1745658651362,-663.02,0.00019799,2]
[359026392,1745658651373,-328.78462942,0.00019799,2]
[359026393,1745658651914,-171.21537058,0.00019799,2]
[359026394,1745658651925,-3248.77422942,0.0002,2]
[359026395,1745658651972,-530.58202628,0.0002,2]
[359026398,1745658653377,-1597.8493469,0.0002,2]
[359026399,1745658653389,-1497.41999184,0.0002,2]
[359026400,1745658653407,-957.93,0.00019799,2]
[359026401,1745658653416,-1255.47009,0.0002,2]
[359026402,1745658653432,-2837.5137,0.0002,2]
[359026403,1745658661698,10000.0,0.00037808,60]
[359026404,1745658724520,1000.0,0.00037808,60]
[359026405,1745658781694,250.0,0.00017,2]
[359026406,1745658782808,300.0,0.00019,2]
[359026408,1745658857146,354.99999999,0.00037808,60]
[359026409,1745658944468,23900.0,0.00018932,2]
[359026410,1745658950348,1000.0,0.00018932,2]
[359026411,1745658994491,400.0,0.00037,120]
[359026412,1745659057030,505.0,0.000378,60]
[359026413,1745659064200,163.82,0.00018953,2]
[359026414,1745659099721,8919.68,0.00037808,60]
[359026415,1745659189880,9983.9920009,0.000378,60]
[359026416,1745659247338,1028.8,0.00016949,2]
[359026417,1745659247531,1028.8,0.00019213,2]
[359026418,1745659247628,187.18,0.00018867,2]
[359026423,1745659607493,250.0,0.00018777,2]
[359026454,1745659831947,-166.68,0.00019337,2]
[359026455,1745659831957,-250.0,0.00019489,2]
[359026456,1745659831967,-525.48834842,0.00019641,2]
[359026457,1745659831977,-182.33021004,0.00019697,2]
[359026458,1745659832003,-2301.5682107,0.00019697,2]
[359026459,1745659832013,-207.4,0.00019709,2]
[359026460,1745659832023,-42.97133684,0.00019709,2]
[359026461,1745659832037,-108.02866316,0.00019709,2]
[359026462,1745659832050,-477.27531913,0.0001972,2]
[359026463,1745659832064,-975.14420108,0.0001972,2]
[359026464,1745659832111,-1031.4789005,0.0001972,2]
[359026465,1745659832122,-150.0,0.00019727,2]
[359026466,1745659832132,-150.0,0.00019729,2]
[359026467,1745659832143,-150.0,0.00019734,2]
[359026468,1745659832152,-150.0,0.00019736,2]
[359026469,1745659832162,-150.0,0.00019737,2]